fUST/lending_fUST_20250514
["ID","MTS","AMOUNT","RATE_DAILY","PERIOD"]
[360939736,1747159836450,-500.0,0.00011732,2]
[360939738,1747159836460,-500.0,0.00011732,2]
[360939741,1747159836471,-500.0,0.00011732,2]
[360939743,1747159836480,-500.0,0.00011732,2]
[360939745,1747159836490,-500.0,0.00011732,2]
[360939747,1747159836500,-500.0,0.00011732,2]
[360939749,1747159836510,-500.0,0.00011732,2]
[360939751,1747159836520,-500.0,0.00011732,2]
[360939753,1747159836530,-500.0,0.00011732,2]
[360939755,1747159836539,-500.0,0.00011732,2]
[360939757,1747159836549,-500.0,0.00011732,2]
[360939759,1747159836559,-500.0,0.00011732,2]
[360939761,1747159836568,-500.0,0.00011732,2]
[360939763,1747159836578,-500.0,0.00011732,2]
[360939765,1747159836587,-500.0,0.00011732,2]
[360939767,1747159836597,-500.0,0.00011732,2]
[360939769,1747159836606,-300.0,0.00011732,2]
[360939771,1747159836617,-1200.0,0.00011732,2]
[360939773,1747159836627,-300.0,0.00011732,2]
[360939775,1747159836637,-500.0,0.00011732,2]
[360939777,1747159836648,-184.75937844,0.00011732,2]
[360939779,1747159836657,-15890.99935836,0.00011733,2]
[360939781,1747159836667,-506.47258563,0.00011735,2]
[360939783,1747159836679,-500.0,0.00011736,2]
[360939785,1747159836689,-500.0,0.00011736,2]
[360939787,1747159836699,-500.0,0.00011736,2]
[360939789,1747159836710,-500.0,0.00011736,2]
[360939791,1747159836722,-500.0,0.00011736,2]
[360939793,1747159836732,-500.0,0.00011736,2]
[360939795,1747159836742,-276.94420014,0.00011736,2]
[360939797,1747159836751,-500.0,0.000118,2]
[360939799,1747159836761,-500.0,0.000118,2]
[360939801,1747159836770,-500.0,0.000118,2]
[360939802,1747159836780,-500.0,0.000118,2]
[360939803,1747159836789,-500.0,0.000118,2]
[360939804,1747159836799,-500.0,0.000118,2]
[360939805,1747159836808,-500.0,0.000118,2]
[360939806,1747159836819,-503.27433683,0.000118,2]
[360939816,1747159837070,-500.0,0.000118,2]
[360939818,1747159837080,-500.0,0.000118,2]
[360939820,1747159837090,-500.0,0.000118,2]
[360939822,1747159837100,-500.0,0.000118,2]
[360939824,1747159837109,-500.0,0.000118,2]
[360939826,1747159837119,-500.0,0.000118,2]
[360939828,1747159837130,-501.69490524,0.000118,2]
[360939830,1747159837141,-24900.0,0.00011856,2]
[360939832,1747159837153,-500.0,0.000119,2]
[360939834,1747159837162,-500.0,0.000119,2]
[360939836,1747159837174,-500.0,0.000119,2]
[360939838,1747159837184,-4086.2847419,0.00012444,2]
[360939840,1747159837195,-167.01410381,0.00012617,2]
[360939842,1747159837206,-207.4,0.00012826,2]
[360939844,1747159837215,-420.0,0.00012882,2]
[360939846,1747159837227,-157.9294556,0.000129,2]
[360939848,1747159837236,-250.0,0.00012905,2]
[360939850,1747159837246,-480.0,0.00012905,2]
[360939852,1747159837256,-175.7170149,0.00013078,2]
[360939854,1747159837266,-157.9294556,0.00013078,2]
[360939856,1747159837276,-569.1666344,0.00013078,2]
[360939858,1747159837285,-500.0,0.00013229,2]
[360939860,1747159837295,-157.9294556,0.00013278,2]
[360939862,1747159837304,-175.7170149,0.00013278,2]
[360939864,1747159837314,-569.1666344,0.00013278,2]
[360939866,1747159837323,-652.61296533,0.00013397,2]
[360939868,1747159837333,-600.0,0.00013413,2]
[360939870,1747159837343,-160.0,0.00013466,2]
[360939871,1747159837353,-422.24190663,0.00013466,2]
[360939872,1747159837363,-2200.0,0.00013506,2]
[360939874,1747159837376,-600.0,0.00013553,2]
[360939876,1747159837386,-167.01410381,0.00013598,2]
[360939878,1747159837395,-264.976,0.000136,2]
[360939880,1747159837405,-500.0,0.00013673,2]
[360939882,1747159837414,-500.0,0.00013673,2]
[360939884,1747159837427,-500.0,0.00013673,2]
[360939886,1747159837438,-503.10342091,0.00013673,2]
[360939888,1747159837449,-500.0,0.00013673,2]
[360939890,1747159837458,-500.0,0.00013673,2]
[360939892,1747159837467,-500.40907426,0.00013673,2]
[360939895,1747159837477,-500.0,0.00013673,2]
[360939898,1747159837486,-500.0,0.00013673,2]
[360939900,1747159837496,-500.0,0.00013673,2]
[360939902,1747159837505,-500.8467201,0.00013673,2]
[360939904,1747159837515,-495.30513333,0.00013673,2]
[360939906,1747159837524,-500.0,0.00013673,2]
[360939908,1747159837534,-318.37495825,0.00013673,2]
[360939910,1747159837543,-500.0,0.00013673,2]
[360939912,1747159837553,-500.0,0.00013673,2]
[360939915,1747159837563,-500.0,0.00013673,2]
[360939917,1747159837573,-214.75058005,0.00013673,2]
[360939919,1747159837583,-500.0,0.00013673,2]
[360939921,1747159837602,-503.70606045,0.00013673,2]
[360939923,1747159837624,-500.0,0.00013673,2]
[360939925,1747159837635,-504.53435,0.00013673,2]
[360939927,1747159837644,-400.0,0.00013692,2]
[360939929,1747159837654,-151.0,0.00013692,2]
[360939931,1747159837665,-600.0,0.00013693,2]
[360939933,1747159837678,-151.0,0.00013698,2]
[360939935,1747159837689,-151.0,0.00013698,2]
[360939937,1747159837699,-151.0,0.00013698,2]
[360939939,1747159837708,-151.0,0.00013698,2]
[360939941,1747159837719,-151.0,0.00013698,2]
[360939943,1747159837729,-151.0,0.00013698,2]
[360939945,1747159837739,-151.0,0.00013698,2]
[360939947,1747159837749,-151.0,0.00013698,2]
[360939949,1747159837759,-151.0,0.00013698,2]
[360939951,1747159837769,-151.0,0.00013698,2]
[360939953,1747159837779,-151.0,0.00013698,2]
[360939955,1747159837788,-151.0,0.00013698,2]
[360939957,1747159837798,-151.0,0.00013698,2]
[360939959,1747159837807,-151.0,0.00013698,2]
[360939961,1747159837817,-151.0,0.00013698,2]
[360939963,1747159837826,-206.5357,0.00013698,2]
[360939965,1747159837835,-151.0,0.00013698,2]
[360939967,1747159837845,-151.0,0.00013698,2]
[360939969,1747159837856,-151.0,0.00013698,2]
[360939971,1747159837866,-151.0,0.00013698,2]
[360939973,1747159837875,-166.983429,0.00013698,2]
[360939975,1747159837885,-151.0,0.00013698,2]
[360939977,1747159837894,-151.0,0.00013698,2]
[360939979,1747159837904,-151.0,0.00013698,2]
[360939981,1747159837914,-151.0,0.00013698,2]
[360939983,1747159837927,-151.0,0.00013698,2]
[360939985,1747159837936,-151.0,0.00013698,2]
[360939987,1747159837946,-351.301657,0.00013698,2]
[360939989,1747159837955,-351.301657,0.00013698,2]
[360939991,1747159837965,-351.301657,0.00013698,2]
[360939994,1747159837976,-351.301657,0.00013698,2]
[360939997,1747159837986,-351.301657,0.00013698,2]
[360940000,1747159837996,-151.0,0.00013698,2]
[360940003,1747159838007,-151.0,0.00013698,2]
[360940004,1747159838016,-151.0,0.00013698,2]
[360940006,1747159838026,-151.0,0.00013698,2]
[360940008,1747159838036,-151.0,0.00013698,2]
[360940010,1747159838046,-400.0,0.00013698,2]
[360940012,1747159838055,-151.0,0.00013698,2]
[360940014,1747159838064,-151.0,0.00013698,2]
[360940016,1747159838074,-151.0,0.00013698,2]
[360940018,1747159838084,-151.0,0.00013698,2]
[360940020,1747159838093,-151.0,0.00013698,2]
[360940022,1747159838102,-400.0,0.00013698,2]
[360940024,1747159838111,-400.0,0.00013698,2]
[360940026,1747159838121,-400.0,0.00013698,2]
[360940028,1747159838130,-400.0,0.00013698,2]
[360940030,1747159838140,-400.0,0.00013698,2]
[360940032,1747159838154,-400.0,0.00013698,2]
[360940034,1747159838164,-400.0,0.00013698,2]
[360940036,1747159838176,-400.0,0.00013698,2]
[360940038,1747159838185,-400.0,0.00013698,2]
[360940040,1747159838195,-400.0,0.00013698,2]
[360940042,1747159838206,-400.0,0.00013698,2]
[360940044,1747159838216,-691.65,0.00013698,2]
[360940046,1747159838225,-400.0,0.00013698,2]
[360940048,1747159838235,-259.47113853,0.00013698,2]
[360940050,1747159838245,-400.0,0.00013698,2]
[360940052,1747159838255,-400.0,0.00013698,2]
[360940054,1747159838264,-183.22286375,0.00013698,2]
[360940056,1747159838274,-400.0,0.00013698,2]
[360940058,1747159838285,-400.0,0.00013698,2]
[360940060,1747159838294,-400.0,0.00013698,2]
[360940062,1747159838304,-400.0,0.00013698,2]
[360940064,1747159838313,-400.0,0.00013698,2]
[360940066,1747159838323,-400.0,0.00013698,2]
[360940068,1747159838332,-400.0,0.00013698,2]
[360940070,1747159838341,-400.0,0.00013698,2]
[360940072,1747159838351,-400.71693786,0.00013698,2]
[360940074,1747159838360,-400.0,0.00013698,2]
[360940076,1747159838370,-400.0,0.00013698,2]
[360940078,1747159838379,-1429.32,0.00013698,2]
[360940080,1747159838390,-400.0,0.00013698,2]
[360940082,1747159838399,-400.0,0.00013698,2]
[360940084,1747159838410,-400.0,0.00013698,2]
[360940086,1747159838421,-400.0,0.00013698,2]
[360940088,1747159838431,-400.0,0.00013698,2]
[360940090,1747159838444,-670.32,0.00013698,2]
[360940092,1747159838457,-400.0,0.00013698,2]
[360940094,1747159838467,-400.0,0.00013698,2]
[360940096,1747159838477,-400.0,0.00013698,2]
[360940098,1747159838486,-322.12271749,0.00013698,2]
[360940100,1747159838496,-629.54,0.00013698,2]
[360940102,1747159838506,-408.0,0.00013698,2]
[360940104,1747159838515,-634.83,0.00013698,2]
[360940106,1747159838525,-618.1,0.00013698,2]
[360940108,1747159838537,-262.06436117,0.00013698,2]
[360940110,1747159838546,-400.0,0.00013698,2]
[360940112,1747159838556,-400.0,0.00013698,2]
[360940114,1747159838567,-400.0,0.00013698,2]
[360940116,1747159838576,-400.0,0.00013698,2]
[360940118,1747159838586,-428.43,0.00013698,2]
[360940120,1747159838595,-400.0,0.00013698,2]
[360940122,1747159838605,-400.0,0.00013698,2]
[360940124,1747159838614,-400.7066527,0.00013698,2]
[360940126,1747159838624,-400.0,0.00013698,2]
[360940128,1747159838633,-400.0,0.00013698,2]
[360940130,1747159838642,-810.0,0.00013698,2]
[360940131,1747159838652,-313.93562518,0.00013698,2]
[360940133,1747159838661,-400.0,0.00013698,2]
[360940135,1747159838670,-240.89833585,0.00013698,2]
[360940137,1747159838681,-1415.53,0.00013698,2]
[360940139,1747159838691,-400.0,0.00013698,2]
[360940141,1747159838700,-161.660474,0.00013698,2]
[360940142,1747159838709,-161.660474,0.00013698,2]
[360940144,1747159838719,-161.660474,0.00013698,2]
[360940146,1747159838728,-161.660474,0.00013698,2]
[360940148,1747159838738,-161.660474,0.00013698,2]
[360940150,1747159838748,-161.660474,0.00013698,2]
[360940152,1747159838758,-161.660474,0.00013698,2]
[360940154,1747159838767,-161.660474,0.00013698,2]
[360940156,1747159838777,-161.660474,0.00013698,2]
[360940158,1747159838786,-500.0,0.00013698,2]
[360940160,1747159838796,-400.0,0.00013698,2]
[360940162,1747159838805,-161.660474,0.00013698,2]
[360940164,1747159838815,-161.660474,0.00013698,2]
[360940166,1747159838824,-161.660474,0.00013698,2]
[360940168,1747159838833,-161.660474,0.00013698,2]
[360940169,1747159838843,-161.660474,0.00013698,2]
[360940171,1747159838852,-161.660474,0.00013698,2]
[360940173,1747159838861,-161.660474,0.00013698,2]
[360940175,1747159838871,-161.660474,0.00013698,2]
[360940176,1747159838880,-161.660474,0.00013698,2]
[360940177,1747159838890,-400.0,0.00013698,2]
[360940179,1747159838900,-400.0,0.00013698,2]
[360940181,1747159838909,-400.0,0.00013698,2]
[360940183,1747159838921,-400.0,0.00013698,2]
[360940185,1747159838931,-400.0,0.00013698,2]
[360940187,1747159838940,-151.0,0.00013698,2]
[360940189,1747159838950,-151.0,0.00013698,2]
[360940191,1747159838959,-151.0,0.00013698,2]
[360940193,1747159838968,-400.0,0.00013698,2]
[360940195,1747159838978,-151.0,0.00013698,2]
[360940197,1747159838987,-151.0,0.00013698,2]
[360940199,1747159838996,-197.47362,0.00013698,2]
[360940201,1747159839007,-400.0,0.00013698,2]
[360940202,1747159839018,-400.0,0.00013698,2]
[360940205,1747159839028,-400.0,0.00013698,2]
[360940207,1747159839038,-327.16086463,0.00013698,2]
[360940209,1747159839047,-400.0,0.00013698,2]
[360940211,1747159839058,-400.0,0.00013698,2]
[360940213,1747159839067,-400.0,0.00013698,2]
[360940215,1747159839077,-400.0,0.00013698,2]
[360940217,1747159839087,-400.96524486,0.00013698,2]
[360940219,1747159839096,-400.0,0.00013698,2]
[360940221,1747159839105,-400.0,0.00013698,2]
[360940223,1747159839114,-400.3424121,0.00013698,2]
[360940225,1747159839124,-400.0,0.00013698,2]
[360940227,1747159839134,-400.0,0.00013698,2]
[360940229,1747159839147,-400.0,0.00013698,2]
[360940231,1747159839157,-400.0,0.00013698,2]
[360940233,1747159839166,-230.80999399,0.00013698,2]
[360940235,1747159839177,-501.19424882,0.00013698,2]
[360940237,1747159839188,-400.0,0.00013698,2]
[360940239,1747159839197,-400.0,0.00013698,2]
[360940241,1747159839207,-400.0,0.00013698,2]
[360940243,1747159839217,-400.0,0.00013698,2]
[360940245,1747159839227,-400.0,0.00013698,2]
[360940247,1747159839236,-400.0,0.00013698,2]
[360940249,1747159839246,-400.0,0.00013698,2]
[360940251,1747159839255,-406.37,0.00013698,2]
[360940253,1747159839265,-400.0,0.00013698,2]
[360940255,1747159839275,-486.49,0.00013698,2]
[360940258,1747159839284,-302.72159327,0.00013698,2]
[360940260,1747159839295,-400.0,0.00013698,2]
[360940262,1747159839305,-574.64,0.00013698,2]
[360940264,1747159839314,-400.0,0.00013698,2]
[360940266,1747159839324,-151.0,0.00013698,2]
[360940268,1747159839334,-151.0,0.00013698,2]
[360940270,1747159839343,-162.846974,0.00013698,2]
[360940272,1747159839353,-400.0,0.00013698,2]
[360940274,1747159839362,-151.0,0.00013698,2]
[360940276,1747159839371,-151.0,0.00013698,2]
[360940278,1747159839380,-151.0,0.00013698,2]
[360940280,1747159839390,-151.0,0.00013698,2]
[360940282,1747159839399,-151.0,0.00013698,2]
[360940283,1747159839408,-1944.55,0.00013698,2]
[360940284,1747159839417,-217.11630872,0.00013698,2]
[360940285,1747159839427,-400.0,0.00013698,2]
[360940286,1747159839437,-513.63,0.00013698,2]
[360940287,1747159839446,-400.0,0.00013698,2]
[360940288,1747159839456,-400.0,0.00013698,2]
[360940289,1747159839466,-400.0,0.00013698,2]
[360940291,1747159839475,-400.0,0.00013698,2]
[360940293,1747159839485,-400.0,0.00013698,2]
[360940297,1747159839495,-400.0,0.00013698,2]
[360940299,1747159839504,-470.01799636,0.00013698,2]
[360940301,1747159839513,-400.0,0.00013698,2]
[360940303,1747159839523,-203.88889079,0.00013698,2]
[360940305,1747159839533,-400.0,0.00013698,2]
[360940307,1747159839542,-472.23462404,0.00013698,2]
[360940309,1747159839552,-400.0,0.00013698,2]
[360940311,1747159839562,-400.0,0.00013698,2]
[360940313,1747159839571,-500.0,0.00013698,2]
[360940315,1747159839580,-400.0,0.00013698,2]
[360940318,1747159839591,-963.53,0.00013698,2]
[360940320,1747159839600,-416.47,0.00013698,2]
[360940323,1747159839610,-782.97,0.00013698,2]
[360940325,1747159839619,-400.0,0.00013698,2]
[360940327,1747159839628,-711.19,0.00013698,2]
[360940329,1747159839637,-740.94,0.00013698,2]
[360940331,1747159839647,-400.0,0.00013698,2]
[360940333,1747159839656,-400.0,0.00013698,2]
[360940335,1747159839666,-715.45,0.00013698,2]
[360940337,1747159839676,-405.13371192,0.00013698,2]
[360940339,1747159839686,-400.0,0.00013698,2]
[360940342,1747159839696,-400.0,0.00013698,2]
[360940344,1747159839706,-1199.22,0.00013698,2]
[360940346,1747159839715,-681.27,0.00013698,2]
[360940348,1747159839725,-151.0,0.00013698,2]
[360940350,1747159839737,-151.0,0.00013698,2]
[360940352,1747159839747,-151.0,0.00013698,2]
[360940354,1747159839757,-151.0,0.00013698,2]
[360940355,1747159839766,-151.0,0.00013698,2]
[360940358,1747159839776,-400.0,0.00013698,2]
[360940360,1747159839786,-151.0,0.00013698,2]
[360940362,1747159839796,-400.0,0.00013698,2]
[360940364,1747159839805,-1101.03,0.00013698,2]
[360940366,1747159839815,-151.0,0.00013698,2]
[360940368,1747159839824,-151.0,0.00013698,2]
[360940370,1747159839834,-626.74,0.00013698,2]
[360940372,1747159839844,-400.0,0.00013698,2]
[360940374,1747159839853,-400.0,0.00013698,2]
[360940376,1747159839863,-400.0,0.00013698,2]
[360940378,1747159839872,-3119.8,0.00013698,2]
[360940380,1747159839882,-400.0,0.00013698,2]
[360940382,1747159839891,-400.0,0.00013698,2]
[360940384,1747159839901,-888.38,0.00013698,2]
[360940386,1747159839910,-400.0,0.00013698,2]
[360940388,1747159839921,-400.0,0.00013698,2]
[360940390,1747159839930,-803.4,0.00013698,2]
[360940392,1747159839940,-400.0,0.00013698,2]
[360940394,1747159839950,-400.0,0.00013698,2]
[360940396,1747159839959,-400.0,0.00013698,2]
[360940398,1747159839969,-952.06,0.00013698,2]
[360940399,1747159839978,-400.0,0.00013698,2]
[360940400,1747159839988,-400.0,0.00013698,2]
[360940401,1747159839998,-400.0,0.00013698,2]
[360940402,1747159840008,-546.63,0.00013698,2]
[360940403,1747159840018,-400.0,0.00013698,2]
[360940404,1747159840027,-1864.64,0.00013698,2]
[360940405,1747159840038,-400.0,0.00013698,2]
[360940406,1747159840047,-400.0,0.00013698,2]
[360940407,1747159840057,-400.0,0.00013698,2]
[360940408,1747159840066,-400.0,0.00013698,2]
[360940409,1747159840075,-400.0,0.00013698,2]
[360940410,1747159840085,-662.73,0.00013698,2]
[360940411,1747159840095,-400.0,0.00013698,2]
[360940412,1747159840105,-2060.42,0.00013698,2]
[360940413,1747159840114,-400.0,0.00013698,2]
[360940414,1747159840124,-565.0,0.00013698,2]
[360940415,1747159840133,-400.0,0.00013698,2]
[360940416,1747159840143,-400.0,0.00013698,2]
[360940417,1747159840156,-400.0,0.00013698,2]
[360940418,1747159840166,-440.79,0.00013698,2]
[360940419,1747159840179,-596.05,0.00013698,2]
[360940420,1747159840190,-730.42,0.00013698,2]
[360940421,1747159840200,-400.0,0.00013698,2]
[360940422,1747159840210,-400.0,0.00013698,2]
[360940423,1747159840220,-400.0,0.00013698,2]
[360940424,1747159840231,-400.0,0.00013698,2]
[360940425,1747159840242,-400.0,0.00013698,2]
[360940426,1747159840252,-400.0,0.00013698,2]
[360940427,1747159840262,-1055.78,0.00013698,2]
[360940428,1747159840274,-642.18,0.00013698,2]
[360940429,1747159840283,-364.707439,0.00013698,2]
[360940430,1747159840292,-364.707439,0.00013698,2]
[360940431,1747159840303,-286.60870845,0.00013698,2]
[360940432,1747159840313,-364.707439,0.00013698,2]
[360940433,1747159840331,-364.707439,0.00013698,2]
[360940434,1747159840341,-364.707439,0.00013698,2]
[360940435,1747159840351,-400.0,0.00013698,2]
[360940436,1747159840361,-364.707439,0.00013698,2]
[360940437,1747159840371,-364.707439,0.00013698,2]
[360940439,1747159840380,-364.707439,0.00013698,2]
[360940440,1747159840391,-364.707439,0.00013698,2]
[360940441,1747159840401,-364.707439,0.00013698,2]
[360940442,1747159840411,-364.707439,0.00013698,2]
[360940443,1747159840423,-400.0,0.00013698,2]
[360940444,1747159840433,-364.707439,0.00013698,2]
[360940445,1747159840444,-364.707439,0.00013698,2]
[360940446,1747159840454,-364.707439,0.00013698,2]
[360940447,1747159840463,-364.707439,0.00013698,2]
[360940448,1747159840473,-364.707439,0.00013698,2]
[360940449,1747159840482,-400.0,0.00013698,2]
[360940450,1747159840492,-1185.94,0.00013698,2]
[360940451,1747159840502,-364.707439,0.00013698,2]
[360940452,1747159840512,-364.707439,0.00013698,2]
[360940453,1747159840522,-364.707439,0.00013698,2]
[360940454,1747159840531,-400.0,0.00013698,2]
[360940455,1747159840542,-864.57,0.00013698,2]
[360940456,1747159840551,-613.58,0.00013698,2]
[360940457,1747159840561,-364.707447,0.00013698,2]
[360940458,1747159840571,-400.0,0.00013698,2]
[360940459,1747159840580,-432.36761153,0.00013698,2]
[360940460,1747159840590,-2299.68,0.00013698,2]
[360940461,1747159840599,-400.0,0.00013698,2]
[360940462,1747159840610,-400.0,0.00013698,2]
[360940463,1747159840622,-1286.3,0.00013698,2]
[360940464,1747159840631,-253.63514779,0.00013698,2]
[360940465,1747159840642,-765.06,0.00013698,2]
[360940466,1747159840651,-576.23,0.00013698,2]
[360940467,1747159840661,-436.26,0.00013698,2]
[360940468,1747159840671,-1692.32,0.00013698,2]
[360940469,1747159840680,-691.36,0.00013698,2]
[360940470,1747159840689,-400.0,0.00013698,2]
[360940471,1747159840699,-400.0,0.00013698,2]
[360940472,1747159840708,-400.0,0.00013698,2]
[360940473,1747159840717,-400.0,0.00013698,2]
[360940474,1747159840727,-400.0,0.00013698,2]
[360940475,1747159840736,-222.47168529,0.00013698,2]
[360940476,1747159840746,-410.33,0.00013698,2]
[360940477,1747159840756,-584.48,0.00013698,2]
[360940478,1747159840766,-423.14457093,0.00013698,2]
[360940479,1747159840775,-400.0,0.00013698,2]
[360940480,1747159840785,-400.0,0.00013698,2]
[360940481,1747159840794,-400.0,0.00013698,2]
[360940482,1747159840803,-627.34,0.00013698,2]
[360940483,1747159840812,-251.60475038,0.00013698,2]
[360940484,1747159840821,-1000.0,0.00013698,2]
[360940485,1747159840830,-4119.34,0.00013698,2]
[360940486,1747159840840,-400.0,0.00013698,2]
[360940487,1747159840851,-656.35,0.00013698,2]
[360940488,1747159840860,-400.0,0.00013698,2]
[360940489,1747159840869,-151.0,0.00013698,2]
[360940490,1747159840879,-151.0,0.00013698,2]
[360940491,1747159840888,-151.0,0.00013698,2]
[360940492,1747159840898,-151.0,0.00013698,2]
[360940493,1747159840907,-151.0,0.00013698,2]
[360940494,1747159840917,-400.0,0.00013698,2]
[360940495,1747159840927,-151.0,0.00013698,2]
[360940496,1747159840937,-151.0,0.00013698,2]
[360940497,1747159840946,-400.0,0.00013698,2]
[360940498,1747159840955,-151.0,0.00013698,2]
[360940499,1747159840965,-551.43,0.00013698,2]
[360940500,1747159840974,-151.0,0.00013698,2]
[360940501,1747159840983,-151.0,0.00013698,2]
[360940502,1747159840993,-403.28137765,0.00013698,2]
[360940503,1747159841002,-151.0,0.00013698,2]
[360940504,1747159841012,-151.0,0.00013698,2]
[360940505,1747159841022,-208.113875,0.00013698,2]
[360940506,1747159841032,-962.51,0.00013698,2]
[360940507,1747159841042,-5645.08,0.00013698,2]
[360940508,1747159841051,-400.0,0.00013698,2]
[360940509,1747159841061,-400.0,0.00013698,2]
[360940510,1747159841071,-488.73,0.00013698,2]
[360940511,1747159841081,-400.0,0.00013698,2]
[360940512,1747159841091,-400.0,0.00013698,2]
[360940513,1747159841101,-277.63856652,0.00013698,2]
[360940514,1747159841112,-400.0,0.00013698,2]
[360940515,1747159841123,-4844.87,0.00013698,2]
[360940516,1747159841133,-575.46,0.00013698,2]
[360940517,1747159841143,-465.04,0.00013698,2]
[360940518,1747159841156,-400.0,0.00013698,2]
[360940519,1747159841165,-151.0,0.00013698,2]
[360940520,1747159841176,-834.8,0.00013698,2]
[360940521,1747159841186,-400.0,0.00013698,2]
[360940522,1747159841198,-151.0,0.00013698,2]
[360940523,1747159841207,-1188.41,0.00013698,2]
[360940524,1747159841225,-151.0,0.00013698,2]
[360940525,1747159841237,-151.0,0.00013698,2]
[360940526,1747159841248,-400.0,0.00013698,2]
[360940527,1747159841260,-400.0,0.00013698,2]
[360940528,1747159841499,-400.0,0.00013698,2]
[360940529,1747159841511,-400.0,0.00013698,2]
[360940530,1747159841522,-400.0,0.00013698,2]
[360940531,1747159841532,-402.25958688,0.00013698,2]
[360940532,1747159841542,-668.66,0.00013698,2]
[360940533,1747159841552,-400.0,0.00013698,2]
[360940534,1747159841563,-625.36,0.00013698,2]
[360940535,1747159841572,-400.0,0.00013698,2]
[360940536,1747159841582,-400.0,0.00013698,2]
[360940537,1747159841592,-781.35,0.00013698,2]
[360940538,1747159841602,-151.0,0.00013698,2]
[360940539,1747159841612,-400.0,0.00013698,2]
[360940540,1747159841621,-151.0,0.00013698,2]
[360940541,1747159841631,-400.0,0.00013698,2]
[360940542,1747159841641,-400.0,0.00013698,2]
[360940543,1747159841650,-358.0,0.00013698,2]
[360940544,1747159841660,-1914.81,0.00013698,2]
[360940545,1747159841670,-1766.41,0.00013698,2]
[360940546,1747159841680,-400.0,0.00013698,2]
[360940547,1747159841691,-400.0,0.00013698,2]
[360940548,1747159841702,-536.58,0.00013698,2]
[360940549,1747159841712,-400.0,0.00013698,2]
[360940550,1747159841722,-400.0,0.00013698,2]
[360940551,1747159841732,-400.0,0.00013698,2]
[360940552,1747159841742,-484.89545531,0.00013698,2]
[360940553,1747159841752,-238.65496286,0.00013698,2]
[360940554,1747159841762,-400.0,0.00013698,2]
[360940555,1747159841772,-1145.96,0.00013698,2]
[360940556,1747159841781,-785.72,0.00013698,2]
[360940557,1747159841792,-400.0,0.00013698,2]
[360940558,1747159841801,-400.0,0.00013698,2]
[360940559,1747159841812,-400.0,0.00013698,2]
[360940560,1747159841822,-400.0,0.00013698,2]
[360940561,1747159841832,-507.18,0.00013698,2]
[360940563,1747159841841,-1772.03,0.00013698,2]
[360940565,1747159841851,-400.0,0.00013698,2]
[360940567,1747159841861,-400.0,0.00013698,2]
[360940569,1747159841871,-701.6,0.00013698,2]
[360940571,1747159841881,-400.0,0.00013698,2]
[360940573,1747159841891,-400.0,0.00013698,2]
[360940575,1747159841901,-400.0,0.00013698,2]